{"text_format":"1","workbook":"xlsx","n_sheets":6,"sheets":["Seite 1","Attribute","Drucken","Eintragung","Kanzleidaten","Stammdaten"],"not_rendered":{"charts":0,"images":2,"macros":1,"external_links":0,"defined_names":74,"comments":1,"pivot_tables":0},"unopened":[],"bounds":{"document_bytes":16777216,"sheet_cells":100000,"rows_first":2000,"rows_last":500,"rows_between":2000,"halvings":0,"cell_chars":16384,"cell_head_chars":4096},"cells_cut":0,"cells_raw":0,"read":"whole","date_system":"1900"}

{"sheet":"Seite 1","index":0,"n_rows":96,"n_cols":56,"rows_kept":96,"cut":false,"hidden":false,"merged":[[91,3,91,7],[91,9,91,21],[93,3,93,46],[18,3,18,16],[20,3,20,10],[83,6,83,31],[80,6,80,44],[57,8,59,44],[60,8,62,44],[63,8,65,44],[86,3,87,44],[26,3,26,41],[54,8,56,44],[77,6,77,24],[77,26,77,33],[27,3,27,41],[28,3,28,41],[29,3,29,41],[67,16,68,44],[66,8,69,15],[47,3,49,47],[32,3,32,41],[34,3,36,47],[40,3,43,47],[45,3,46,47],[7,3,7,23],[8,3,8,23],[10,3,10,23],[20,11,20,28],[18,17,18,35]]}
[1,0]
[1]
[1]
[1]
[1]
[1]
[1,null,null,null,null,null,null,null,null,null,null,null,null,null,null,null,null,null,null,null,null,null,null,null,null,null,null,null,null,null,null,null,null,null,null,null,null,null,null,null,null,null,null,null,null,null,null,null,null,null,null,null,null,null,"SepaKombiMandat",false]
[1,null,null,"",null,null,null,null,null,null,null,null,null,null,null,null,null,null,null,null,null,null,null,null,null,null,null,null,null,null,null,null,null,null,null,null,null,null,null,null,null,null,null,null,null,null,null,null,null,null,null,null,null,null,"SepaBasisMandat",true]
[1,null,null,"",null,null,null,null,null,null,null,null,null,null,null,null,null,null,null,null,null,null,null,null,null,null,null,null,null,null,null,null,null,null,null,null,null,null,null,null,null,null,null,null,null,null,null,null,null,null,null,null,null,null,"SepaFirmenMandat",false]
[1]
[1,null,null,"",null,null,null,null,null,null,null,null,null,null,null,null,null,null,null,null,null,null,null,null,null,null,null,null,null,null,null,null,null,null,null,null,null,null,null,null,null,null,null,null,null,null,null,null,null,null,null,null,null,null,"EinmalZahlung",{"$f":"IF(RX_Einmalig=\"\",FALSE,TRUE)","v":false}]
[1]
[1]
[{"$f":"IF(SepaKombiMandat,1,0)","v":0},null,null,"Einzugsermächtigung und SEPA-Basislastschrift-Mandat (Kombimandat)"]
[{"$f":"IF(SepaBasisMandat,1,0)","v":1},null,null,"SEPA-Basislastschrift-Mandat"]
[{"$f":"IF(SepaFirmenMandat,1,0)","v":0},null,null,"SEPA-Firmenlastschrift-Mandat"]
[1]
[1]
[1,null,null,"Gläubiger-Identifikationsnummer",null,null,null,null,null,null,null,null,null,null,null,null,null,"DE33ZZZ00000366326",null,null,null,null,null,null,null,null,null,null,null,null,null,null,null,null,null,null,null,null,null,null,null,null,null,null,null,null,null,null,null,null,null,null,null,null,"GlaeubigerID_Leer",{"$f":"IF(B_KDGlaeubigerID=\"\",TRUE,FALSE)","v":false}]
[1]
[1,null,null,"Mandatsreferenz",null,null,null,null,null,null,null,"Wird separat mitgeteilt"]
[1]
[1]
[1]
[1,null,null,"Zahlungsempfänger"]
[1]
[1,null,null,"Steuerkanzlei"]
[1,null,null,"Angelika Ringwald"]
[1,null,null,"Hauptstraße 32 "]
[1,null,null,"77781 Biberach"]
[1]
[{"$f":"IF(SepaKombiMandat,1,0)","v":0}]
[0,null,null,"A. Einzugsermächtigung"]
[0]
[0,null,null,{"$f":"\"Ich/Wir ermächtige(n) \" & B_KDBezeichnung & \" widerruflich, die von mir/uns zu \" & IF(EinmalZahlung,\"entrichtende Zahlung\",\"entrichtenden Zahlungen\") & \" bei Fälligkeit durch Lastschrift von meinem/unserem Konto einzuziehen.\"","v":"Ich/Wir ermächtige(n) Steuerkanzlei widerruflich, die von mir/uns zu entrichtenden Zahlungen bei Fälligkeit durch Lastschrift von meinem/unserem Konto einzuziehen."}]
[0]
[0]
[{"$f":"IF(SepaKombiMandat,1,0)","v":0}]
[{"$f":"IF(SepaKombiMandat,1,0)","v":0},null,null,"B. SEPA-Lastschrift"]
[0]
[1,null,null,{"$f":"\"Ich ermächtige/Wir ermächtigen \" & B_KDBezeichnung1 & IF(NOT(AND(B_KDBezeichnung=\"\",B_KDBezeichnung1=\"\")),\" \",\"\") & B_KDBezeichnung &  \", \" & IF(EinmalZahlung,\"einmalig eine Zahlung\",\"Zahlungen\") & \" von meinem/unserem Konto mittels Lastschrift einzuziehen. Zugleich weise ich/weisen wir mein/unser Kreditinstitut an, die von \" & B_KDBezeichnung1 & IF(NOT(AND(B_KDBezeichnung=\"\",B_KDBezeichnung1=\"\")),\" \",\"\") & B_KDBezeichnung & \" auf mein/unser Konto \" & IF(EinmalZahlung,\"gezogene Lastschrift\",\"gezogenen Lastschriften\") & \" einzulösen.\"","v":"Ich ermächtige/Wir ermächtigen Angelika Ringwald Steuerkanzlei, Zahlungen von meinem/unserem Konto mittels Lastschrift einzuziehen. Zugleich weise ich/weisen wir mein/unser Kreditinstitut an, die von Angelika Ringwald Steuerkanzlei auf mein/unser Konto gezogenen Lastschriften einzulösen."}]
[1]
[1]
[{"$f":"IF(LEN(B_KDBezeichnung)>60,1,0)","v":0}]
[1]
[{"$f":"IF(OR(SepaKombiMandat,SepaBasisMandat),1,0)","v":1},null,null,"Hinweis: Ich kann/wir können innerhalb von acht Wochen, beginnend mit dem Belastungsdatum, die Erstattung des belasteten Betrags verlangen. Es gelten dabei die mit meinem/unserem Kreditinstitut vereinbarten Bedingungen."]
[{"$f":"IF(OR(SepaKombiMandat,SepaBasisMandat),1,0)","v":1}]
[{"$f":"IF(SepaFirmenMandat,1,0)","v":0},null,null,"Hinweis: Dieses Lastschriftmandat dient nur dem Einzug von Lastschriften, die auf Konten von Unternehmen gezogen sind. Ich/Wir sind nicht berechtigt, nach der erfolgten Einlösung eine Erstattung des belasteten Betrages zu verlangen. Ich bin/Wir sind berechtigt, unser Kreditinstitut bis zum Fälligkeitstag anzuweisen, Lastschriften nicht einzulösen."]
[{"$f":"IF(SepaFirmenMandat,1,0)","v":0}]
[{"$f":"IF(SepaFirmenMandat,1,0)","v":0}]
[1]
[1,null,null,null,null,null,"X",null,"Wiederkehrende Zahlungen",null,null,null,null,null,null,null,null,null,null,null,null,null,null,null,null,"Einmalige Zahlung"]
[1]
[{"$f":"IF(OR(SepaFirmenMandat,AnzeigeListe=0),0,1)","v":0},null,null,{"$f":"\"Die Ermächtigung gilt für \" & IF(EinmalZahlung, \"eine einmalige Zahlung\", \"Zahlungen\") & \" wegen\"","v":"Die Ermächtigung gilt für Zahlungen wegen"}]
[0,null,null,null,null,null,null,null,{"$f":"IF(EinmalZahlung, \"\",\"laufendem \") & \"Buchführungshonorar\"","v":"laufendem Buchführungshonorar"}]
[0]
[0]
[0,null,null,null,null,null,null,null,"Lohnbuchhaltungshonorar"]
[0]
[0]
[0,null,null,null,null,null,null,null,"Jahresabschlussarbeiten einschl. Steuererklärungen"]
[0]
[0]
[0,null,null,null,null,null,null,null,{"$f":"\"sonstiger in Auftrag gegebener Einzelleistunge\" & IF(EinmalZahlung,\"\",\"n\")","v":"sonstiger in Auftrag gegebener Einzelleistungen"}]
[0]
[0]
[0,null,null,null,null,null,null,null,"sonstiger Gründe:"]
[0]
[0]
[0]
[1]
[1,null,null,"Bankverbindung"]
[1]
[1]
[1]
[1]
[1,null,null,null,null,null,"IBAN",null,null,null,null,null,null,null,null,null,null,null,null,null,null,null,null,null,null,null,"BIC"]
[1]
[1]
[1,null,null,null,null,null,"Kreditinstitut (Bank oder Postgiroamt) und Ort"]
[1,null,null,null,null,null,""]
[1]
[1,null,null,null,null,null,"Name des abweichenden Kontoinhabers"]
[1,null,null,null,null,null,""]
[1]
[{"$f":"IF(SepaKombiMandat,1,0)","v":0}]
[{"$f":"IF(SepaKombiMandat,1,0)","v":0},null,null,{"$f":"\"Vor dem ersten Einzug einer SEPA-Basislastschrift wird mich/uns \"&B_KDBezeichnung&\" über den Einzug in dieser Verfahrensart unterrichten.\"","v":"Vor dem ersten Einzug einer SEPA-Basislastschrift wird mich/uns Steuerkanzlei über den Einzug in dieser Verfahrensart unterrichten."}]
[{"$f":"IF(SepaKombiMandat,1,0)","v":0}]
[1]
[1]
[1]
[1]
[1,null,null,"Datum, Ort und Unterschrift(en)"]
[1,null,null,"Unterschrift(en)      - unbedingt erforderlich -"]
[1]
[1]

{"sheet":"Attribute","index":1,"n_rows":6,"n_cols":3,"rows_kept":6,"cut":false,"hidden":true,"merged":[]}
["KAW-Variable","Wert","Bezeichnung"]
["KAW020001",{"$f":"IF(Mandantennummer=\"\",\"\",Mandantennummer)","v":""},"Nummer"]
["KAW010101",{"$f":"IF(FirstRun=\"\",\"\",YEAR(FirstRun))","v":2020},"Jahr"]
["KAW010102",{"$f":"IF(FirstRun=\"\",\"\",MONTH(FirstRun))","v":11},"Monat"]
["KAW010103",{"$f":"\"SEPA-Lastschrift-Mandat \" & IF(Z_Name=\"\",\"\",Z_Name)","v":"SEPA-Lastschrift-Mandat "},"Beschreibung"]
["KAW010105",null,"Stichworte"]

{"sheet":"Drucken","index":2,"n_rows":2,"n_cols":12,"rows_kept":2,"cut":false,"hidden":true,"merged":[]}
["Sheetname","Header","Caption","Checked","Druck","Linebreak","WithBlankSheet","BlankSheetName","Seiten","Drucker","BeraterMandant","Duplex"]
["Seite 1","Header",null,"true",true,null,null,null,1,null,true,true]

{"sheet":"Eintragung","index":3,"n_rows":26,"n_cols":17,"rows_kept":26,"cut":false,"hidden":true,"merged":[]}
["Art","Person","Betrieb","VF","Quelle / Ziel","Wert","VF","Wert 1","Wert 2","Wert 3","Wert 4","Wert 5","Wert 6","Wert 7","Wert 8","Wert 9","Wert 10"]
["ZMSD","$Mandant.Name","$Mandant.Name",null,"Zentraler_Mandanten_Name"]
["ZMSD","$Mandant.Nummer","$Mandant.Nummer",null,"Mandantennummer"]
["ZMSD","$Steuerpflichtiger.TitelAkademischerGrad","NA",null,"Titel",""]
["ZMSD","$Steuerpflichtiger.Vorname","NA",null,"Vorname",""]
["ZMSD","$Steuerpflichtiger.Nachname","$Betrieb.Unternehmensbezeichnung",null,"Name",""]
["ZMSD","$Steuerpflichtiger.Hauptstrasse.Strasse","$Betrieb.Hauptstrasse.Strasse",null,"Straße",""]
["ZMSD","$Steuerpflichtiger.Hauptstrasse.PLZ","$Betrieb.Hauptstrasse.PLZ",null,"Postleitzahl_Inland_Neu",""]
["ZMSD","$Steuerpflichtiger.Hauptstrasse.Ort","$Betrieb.Hauptstrasse.Ort",null,"Ort",""]
["ZMSD","$Steuerpflichtiger.Hauptpostfach.Postfach","$Betrieb.Hauptpostfach.Postfach",null,"Postfach",""]
["ZMSD","$Steuerpflichtiger.Hauptpostfach.PLZ","$Betrieb.Hauptpostfach.PLZ",null,"Postleitzahl_für_Postfach",""]
["ZMSD","$Steuerpflichtiger.Hauptpostfach.Ort","$Betrieb.Hauptpostfach.Ort",null,"Ort_Postfach",""]
["ZMSD","$Steuerpflichtiger.Bank[].Bankkonto.Info.Bezeichnung1","$Betrieb.Bank[].Bankkonto.Info.Bezeichnung1",30,"Banken_Name","",0,"","","","","","","","","",""]
["ZMSD","$Steuerpflichtiger.Bank[].Bankkonto.IBAN","$Betrieb.Bank[].Bankkonto.IBAN",30,"Banken_IBAN"]
["ZMSD","$Steuerpflichtiger.Bank[].Bankkonto.Info.BIC","$Betrieb.Bank[].Bankkonto.Info.BIC",30,"Banken_BIC"]
["ZMSD","$Steuerpflichtiger.Bank[].AbwKontoinhaber","$Betrieb.Bank[].AbwKontoinhaber",30,"Banken_AbwName","",null,"","","","","","","","","",""]
["ZMSD","$Steuerpflichtiger.Bank[].Bankkonto.Info.Hauptstrasse.Ort","$Betrieb.Bank[].Bankkonto.Info.Hauptstrasse.Ort",30,"Banken_Ort","",null,"","","","","","","","","",""]
["ZMSD","$Steuerpflichtiger.Hauptbank.Bankkonto.IBAN","$Betrieb.Hauptbank.Bankkonto.IBAN",null,"BankHaupt_IBAN",null,{"$f":"IF(BankHaupt_IBAN<>\"\",IF(ISNA(MATCH(BankHaupt_IBAN,H14:IV14,0)),0,MATCH(BankHaupt_IBAN,H14:IV14,0)),0)","v":0}]
["COPY",null,null,null,"Z_Name",{"$f":"IF(Titel=\"\",\"\",Titel&\" \")&IF(Vorname=\"\",\"\",Vorname&\" \")&IF(Name=\"\",\"\",Name)","v":""}]
["COPY",null,null,null,"Z_Anschrift",{"$f":"IF(Postfach=\"\",IF(Straße=\"\",\"\",Straße),\"Postfach \" & Postfach)","v":""}]
["COPY",null,null,null,"Z_PLZOrt",{"$f":"IF(Postfach=\"\",IF(Postleitzahl_Inland_Neu=\"\",\"\",Postleitzahl_Inland_Neu&\" \")&IF(Ort=\"\",\"\",Ort),IF(Postleitzahl_für_Postfach=\"\",\"\",Postleitzahl_für_Postfach&\" \")&IF(Ort_Postfach=\"\",\"\",Ort_Postfach))","v":""}]
["BANK",null,null,null,"Z_IBAN",{"$f":"IF(Banken_IBAN=\"\",\"\",Banken_IBAN)","v":""}]
["BANK",null,null,null,"Z_BIC",{"$f":"IF(Banken_BIC=\"\",\"\",Banken_BIC)","v":""}]
["BANK",null,null,null,"Z_BankName",{"$f":"IF(Banken_Name=\"\",\"\",Banken_Name) & IF(Banken_Ort=\"\",\"\",\", \"&Banken_Ort)","v":""}]
["BANK",null,null,null,"Z_BankAbweichend",{"$f":"IF(Banken_AbwName=\"\",\"\",Banken_AbwName)","v":""}]
["COPY",null,null,null,"Z_Datum",{"$f":" TEXT(TODAY(),\"TT.MM.JJJJ\")","v":"04.11.2020"}]

{"sheet":"Kanzleidaten","index":4,"n_rows":15,"n_cols":3,"rows_kept":15,"cut":false,"hidden":true,"merged":[]}
["Aktion","Quelle / Ziel","Wert"]
["KANZLEI","KD_Bezeichnung","Steuerkanzlei"]
["KANZLEI","KD_Bezeichnung1","Angelika Ringwald"]
["KANZLEI","KD_Straße","Hauptstraße 32 "]
["KANZLEI","KD_Plz","77781"]
["KANZLEI","KD_Ort","Biberach"]
["KANZLEI","KD_Tel","07835/6309-0"]
["KANZLEI","KD_Fax","07835/6309-40"]
["KANZLEI","KD_Email","info@stb-ringwald.de"]
["KANZLEI","KD_GlaeubigerID","DE33ZZZ00000366326"]
["COPY","B_KDGlaeubigerID",{"$f":"IF(KD_GlaeubigerID=\"\",\"\", KD_GlaeubigerID)","v":"DE33ZZZ00000366326"}]
["COPY","B_KDBezeichnung",{"$f":"IF(KD_Bezeichnung=\"\",\"\",KD_Bezeichnung)","v":"Steuerkanzlei"}]
["COPY","B_KDBezeichnung1",{"$f":"IF(KD_Bezeichnung1=\"\",\"\",KD_Bezeichnung1)","v":"Angelika Ringwald"}]
["COPY","B_KDStraße",{"$f":"IF(KD_Straße=\"\",\"\",KD_Straße)","v":"Hauptstraße 32 "}]
["COPY","B_KDPlzOrt",{"$f":"IF(KD_PLZ=\"\",\"\",KD_PLZ & \" \") & IF(KD_Ort=\"\",\"\",KD_Ort)","v":"77781 Biberach"}]

{"sheet":"Stammdaten","index":5,"n_rows":9,"n_cols":2,"rows_kept":9,"cut":false,"hidden":true,"merged":[]}
["Stammdaten"]
["ToolName","Neuanlage eines Mandats"]
["ToolVersion","V.4.5"]
["ToolDatum","(26.11.2018)"]
["ToolInfo",{"$f":"ToolName & \"\n\" & ToolVersion & \" \" & ToolDatum","v":"Neuanlage eines Mandats\nV.4.5 (26.11.2018)"}]
["Eingabekontrolle",true]
["FirstRun","04.11.2020"]
["ToolId","Last_Kombi"]
["ToolKompId","T0000023"]